[Event "Vienna GM February 2022"]
[Site "Vienna"]
[Date "2022.02.20"]
[Round "4.5"]
[White "Nagy, Gabor"]
[Black "Kraus, Tomas"]
[Result "1/2-1/2"]
[ECO "A11"]
[WhiteElo "2530"]
[BlackElo "2477"]
[Annotator "ChessBase"]
[PlyCount "134"]
[EventDate "2022.02.16"]
[EventType "tourn"]
[EventCountry "AUT"]
[SourceTitle "playchess.com"]
[Source "ChessBase"]
[SourceQuality "1"]
[TimeControl "40/5400+30:1800+30"]

1. c4 {[%emt 0:00:04]} c6 {[%emt 0:04:00]} 2. Nf3 {[%emt 0:00:42]} Nf6 {[%emt 0:00:40]} 3. g3 {[%emt 0:01:45]} d5 {[%emt 0:00:17]} 4. Bg2 {[%emt 0:00:08]} dxc4 {[%emt 0:00:14]} 5. O-O {[%emt 0:00:35]} Nbd7 {[%emt 0:00:17]} 6. Qc2 {[%emt 0:01:32]} Nb6 {[%emt 0:00:43]} 7. Na3 {[%emt 0:00:37]} Be6 {[%emt 0:00:23]} 8. Ne5 {[%emt 0:01:47]} h5 {[%emt 0:00:42]} 9. Naxc4 {[%emt 0:03:42]} Nxc4 {[%emt 0:00:19]} 10. Nxc4 {[%emt 0:00:08]} h4 {[%emt 0:00:22]} 11. d3 {[%emt 0:02:11]} hxg3 {[%emt 0:02:55]} 12. fxg3 {[%emt 0:00:54]} Bh3 {[%emt 0:21:09]} 13. Bxh3 {[%emt 0:07:46]} Rxh3 {[%emt 0:00:54]} 14. e4 {[%emt 0:08:36]} Ng4 {[%emt 0:23:09]} 15. Ne3 {[%emt 0:01:11]} Qd4 {[%emt 0:02:42]} 16. Qe2 {[%emt 0:08:16]} Ne5 {[%emt 0:00:39]} 17. Kg2 {[%emt 0:01:27]} Rh7 {[%emt 0:02:55]} 18. Rd1 {[%emt 0:00:31]} g6 {[%emt 0:01:34]} 19. Nc4 {[%emt 0:04:35]} Bg7 {[%emt 0:01:52]} 20. h4 {[%emt 0:05:40]} Rh5 {[%emt 0:06:28]} 21. Be3 {[%emt 0:04:11]} Qd7 {[%emt 0:00:20]} 22. Nxe5 {[%emt 0:00:08]} Rxe5 {[%emt 0:00:45]} 23. Rac1 {[%emt 0:01:15]} Rb5 {[%emt 0:04:16]} 24. b3 {[%emt 0:00:53]} Bd4 {[%emt 0:06:48]} 25. Bxd4 {[%emt 0:03:38]} Qxd4 {[%emt 0:00:06]} 26. Rc4 {[%emt 0:00:11]} Qd7 {[%emt 0:01:47]} 27. Qe3 {[%emt 0:01:35]} a5 {[%emt 0:12:39]} 28. d4 {[%emt 0:01:15]} Qg4 {[%emt 0:01:12]} 29. Rf1 {[%emt 0:00:57]} Qe6 {[%emt 0:00:51]} 30. Qf3 {[%emt 0:03:39]} a4 {[%emt 0:00:51]} 31. Rf2 {[%emt 0:09:02]} axb3 {[%emt 0:01:46]} 32. axb3 {[%emt 0:00:23]} Ra3 {[%emt 0:00:51]} 33. Ra4 {[%emt 0:08:03]} Rxa4 {[%emt 0:01:10]} 34. bxa4 {[%emt 0:00:07]} Rb4 {[%emt 0:00:03]} 35. Qf4 {[%emt 0:03:15]} Rxd4 {[%emt 0:00:36]} 36. Qb8+ {[%emt 0:00:10]} Rd8 {[%emt 0:00:07]} 37. Qxb7 {[%emt 0:00:15]} Qxe4+ {[%emt 0:00:12]} 38. Kh2 {[%emt 0:00:05]} Kf8 {[%emt 0:01:41]} 39. Qb3 {[%emt 0:01:43]} f6 {[%emt 0:00:19]} 40. a5 {[%emt 0:00:37]} Qe1 {[%emt 0:01:56]} 41. Qf3 {[%emt 0:31:34]} Qxa5 {[%emt 0:13:33]} 42. Qxc6 {[%emt 0:00:00]} Qe5 {[%emt 0:00:26]} 43. Qc2 {[%emt 0:00:00]} Kf7 {[%emt 0:00:39]} 44. Re2 {[%emt 0:00:00]} Qd5 {[%emt 0:00:15]} 45. Qc1 {[%emt 0:00:00]} Qd3 {[%emt 0:04:51]} 46. Rf2 {[%emt 0:00:00]} Rh8 {[%emt 0:01:52]} 47. Qf4 {[%emt 0:00:00]} Qd5 {[%emt 0:02:10]} 48. Rd2 {[%emt 0:00:00]} Qe6 {[%emt 0:00:01]} 49. Rf2 {[%emt 0:00:00]} Rh5 {[%emt 0:00:08]} 50. Qf3 {[%emt 0:00:00]} Qe5 {[%emt 0:00:57]} 51. Re2 {[%emt 0:00:00]} Qd6 {[%emt 0:02:10]} 52. Qb3+ {[%emt 0:00:00]} Kf8 {[%emt 0:00:44]} 53. Kg1 {[%emt 0:00:00]} Rd5 {[%emt 0:00:41]} 54. Qe3 {[%emt 0:00:00]} Qc5 {[%emt 0:01:08]} 55. Qxc5 {[%emt 0:00:00]} Rxc5 {[%emt 0:00:01]} 56. Kg2 {[%emt 0:00:00]} Rc3 {[%emt 0:00:41]} 57. Re6 {[%emt 0:00:00]} Kf7 {[%emt 0:00:14]} 58. Ra6 {[%emt 0:00:00]} Rb3 {[%emt 0:00:38]} 59. Rc6 {[%emt 0:00:00]} Ra3 {[%emt 0:00:05]} 60. Rb6 {[%emt 0:00:00]} Rd3 {[%emt 0:00:41]} 61. Ra6 {[%emt 0:00:00]} Rd6 {[%emt 0:00:28]} 62. Ra3 {[%emt 0:00:00]} Re6 {[%emt 0:01:24]} 63. Kf3 {[%emt 0:00:00]} Re5 {[%emt 0:00:07]} 64. Ra6 {[%emt 0:00:00]} Rf5+ {[%emt 0:00:09]} 65. Ke3 {[%emt 0:00:00]} Re5+ {[%emt 0:00:09]} 66. Kf3 {[%emt 0:00:00]} Kg7 {[%emt 0:00:03]} 67. Ra8 {[%emt 0:00:00]} Kf7 {[%emt 0:00:50]} 1/2-1/2

[Event "Vienna GM February 2022"]
[Site "Vienna"]
[Date "2022.02.24"]
[Round "7.4"]
[White "Menezes, Christoph"]
[Black "Baumegger, Siegfried"]
[Result "1-0"]
[ECO "D85"]
[WhiteElo "2415"]
[BlackElo "2464"]
[Annotator "RC"]
[PlyCount "107"]
[EventDate "2022.02.16"]
[EventType "tourn"]
[EventCountry "AUT"]
[SourceTitle "playchess.com"]
[Source "ChessBase"]
[SourceQuality "1"]
[TimeControl "40/5400+30:1800+30"]

1. d4 {[%emt 0:04:48]} Nf6 {[%emt 0:00:14]} 2. c4 {[%emt 0:00:14]} g6 {[%emt 0:00:10]} 3. Nc3 {[%emt 0:00:41]} d5 {[%emt 0:00:12]} 4. Nf3 {[%emt 0:03:22]} Bg7 {[%emt 0:00:06]} 5. cxd5 {[%emt 0:00:41]} Nxd5 {[%emt 0:00:06]} 6. e4 {[%emt 0:01:03]} Nxc3 {[%emt 0:00:06]} 7. bxc3 {[%emt 0:00:03]} c5 {[%emt 0:00:09]} 8. Be3 {[%emt 0:00:35]} Qa5 {[%emt 0:00:20]} 9. Nd2 {[%emt 0:01:27]} Nd7 {[%emt 0:03:59]} 10. Nb3 {[%emt 0:00:35]} Qc7 {[%emt 0:03:13]} 11. Be2 {[%emt 0:00:54]} O-O {[%emt 0:00:44]} 12. O-O {[%emt 0:00:35]} b6 {[%emt 0:05:17]} 13. f4 {[%emt 0:14:44]} Bb7 {[%emt 0:05:06]} 14. Bf3 {[%emt 0:00:58]} e6 {[%emt 0:14:29]} 15. e5 {[%emt 0:03:20]} Rac8 {[%emt 0:05:38]} 16. dxc5 {[%emt 0:09:05]} Rfd8 {[%emt 0:04:44]} 17. Qe2 {[%emt 0:10:15]} Bf8 {[%emt 0:12:59]} 18. cxb6 {[%emt 0:03:41]} Nxb6 {[%emt 0:00:20]} 19. Bxb7 {[%emt 0:00:31]} Qxb7 {[%emt 0:00:11]} 20. Bd4 {[%emt 0:00:24]} Nd5 {[%emt 0:02:36]} 21. Qf3 {[%emt 0:04:04]} Qc7 {[%emt 0:05:21]} 22. Rac1 {[%emt 0:10:53]} Ba3 {[%emt 0:02:50]} 23. Rc2 {[%emt 0:00:43]} a5 {[%emt 0:05:41]} 24. Rd2 {[%emt 0:08:52]} a4 {[%emt 0:02:39]} 25. Nc1 {[%emt 0:00:12]} Ne7 {[%emt 0:04:15]} 26. Ne2 {[%emt 0:01:20]} h5 {[%emt 0:03:41]} 27. Ng3 {[%emt 0:02:23]} Nc6 {[%emt 0:03:52]} 28. Ne4 {[%emt 0:02:19]} Nxd4 {[%emt 0:01:02]} 29. cxd4 {[%emt 0:00:37]} Bb4 {[%emt 0:00:13]} 30. Rd3 {[%emt 0:01:16]} Qc4 {[%emt 0:01:45]} 31. d5 {[%emt 0:01:46]} Qxa2 {[%emt 0:05:48]} 32. d6 {[%emt 0:01:47]} Qb2 {[%emt 0:02:18]} 33. Qg3 {[%emt 0:01:14]} Rc1 {[%emt 0:01:13]} 34. Rdd1 {[%emt 0:06:51]} Rxd1 {[%emt 0:01:20]} 35. Rxd1 {[%emt 0:00:02]} Qe2 {[%emt 0:00:45]} 36. Qf3 {[%emt 0:00:31]} Qxf3 {[%emt 0:00:38]} 37. gxf3 {[%emt 0:00:03]} a3 {[%emt 0:00:35]} 38. Ra1 {[%emt 0:00:03]} Kf8 {[%emt 0:01:19]} 39. Kf2 {[%emt 0:00:37]} Rc8 {[%emt 0:00:38]} 40. Ra2 {[%emt 0:00:53]} Rc1 {[%emt 0:01:34]} 41. Ke2 {[%emt 0:31:03]} Ke8 {[%emt 0:18:32]} 42. Kd3 {[%emt 0:00:00]} Kd7 {[%emt 0:04:39]} 43. Rc2 {[%emt 0:00:00]} Rxc2 {[%emt 0:00:15]} 44. Kxc2 {[%emt 0:00:00]} f5 {[%emt 0:07:42]} 45. Nc3 {[%emt 0:00:00]} Ba5 {[%emt 0:01:49]} 46. Ne2 {[%emt 0:00:00]} Bb4 {[%emt 0:01:19]} 47. Nc1 {[%emt 0:00:00]} Bxd6 {[%emt 0:00:27]} 48. exd6 {[%emt 0:00:00]} Kxd6 {[%emt 0:00:04]} 49. Nd3 {[%emt 0:00:46]} Kd5 {[%emt 0:00:11]} 50. h4 {[%emt 0:00:25]} Kd4 {[%emt 0:01:48]} 51. Ne5 {[%emt 0:00:37]} Ke3 {[%emt 0:00:15]} 52. Nxg6 {[%emt 0:00:26]} Kxf3 {[%emt 0:00:08]} 53. Kb3 {[%emt 0:00:25]} Ke4 {[%emt 0:01:00]} 54. Kxa3 {[%emt 0:00:15]} 1-0

[Event "Vienna GM February 2022"]
[Site "Vienna"]
[Date "2022.02.24"]
[Round "8.2"]
[White "Froewis, Georg"]
[Black "Menezes, Christoph"]
[Result "1/2-1/2"]
[ECO "D90"]
[WhiteElo "2449"]
[BlackElo "2415"]
[Annotator "RC"]
[PlyCount "71"]
[EventDate "2022.02.16"]
[EventType "tourn"]
[EventCountry "AUT"]
[SourceTitle "playchess.com"]
[Source "ChessBase"]
[SourceQuality "1"]
[TimeControl "40/5400+30:1800+30"]

1. Nf3 {[%emt 0:00:04]} Nf6 {[%emt 0:00:17]} 2. c4 {[%emt 0:00:05]} g6 {[%emt 0:00:14]} 3. Nc3 {[%emt 0:00:08]} d5 {[%emt 0:00:16]} 4. d4 {[%emt 0:01:28]} Bg7 {[%emt 0:00:15]} 5. h4 {[%emt 0:00:03]} c6 {[%emt 0:00:17]} 6. cxd5 {[%emt 0:00:10]} cxd5 {[%emt 0:00:06]} 7. Bf4 {[%emt 0:00:05]} Nc6 {[%emt 0:00:22]} 8. e3 {[%emt 0:00:10]} O-O {[%emt 0:00:15]} 9. Be2 {[%emt 0:00:10]} Bg4 {[%emt 0:00:29]} 10. Qb3 {[%emt 0:00:08]} Qd7 {[%emt 0:00:46]} 11. Ne5 {[%emt 0:04:21]} Nxe5 {[%emt 0:00:33]} 12. dxe5 {[%emt 0:00:07]} Ne4 {[%emt 0:00:30]} 13. f3 {[%emt 0:05:41]} Nxc3 {[%emt 0:00:26]} 14. Qxc3 {[%emt 0:00:05]} Be6 {[%emt 0:00:11]} 15. Qd4 {[%emt 0:03:10]} Rfc8 {[%emt 0:04:27]} 16. O-O {[%emt 0:08:40]} Qc7 {[%emt 0:04:09]} 17. Rfd1 {[%emt 0:02:01]} Qc5 {[%emt 0:04:10]} 18. Rd2 {[%emt 0:11:33]} f6 {[%emt 0:08:58]} 19. Rad1 {[%emt 0:04:47]} Kf7 {[%emt 0:06:53]} 20. Kf2 {[%emt 0:13:37]} Rc6 {[%emt 0:03:33]} 21. h5 {[%emt 0:08:22]} g5 {[%emt 0:04:27]} 22. Bg3 {[%emt 0:10:09]} Qxd4 {[%emt 0:01:38]} 23. exd4 {[%emt 0:00:12]} f5 {[%emt 0:00:11]} 24. Bb5 {[%emt 0:06:12]} Rc7 {[%emt 0:01:47]} 25. Ke2 {[%emt 0:00:36]} h6 {[%emt 0:01:10]} 26. Bd3 {[%emt 0:04:33]} Rac8 {[%emt 0:03:04]} 27. b3 {[%emt 0:02:38]} Rc3 {[%emt 0:04:48]} 28. Be1 {[%emt 0:02:16]} Bd7 {[%emt 0:01:39]} 29. Rb2 {[%emt 0:00:37]} R3c7 {[%emt 0:00:46]} 30. Ba5 {[%emt 0:00:41]} b6 {[%emt 0:00:39]} 31. Bd2 {[%emt 0:00:11]} e6 {[%emt 0:01:31]} 32. Ba6 {[%emt 0:02:19]} Rb8 {[%emt 0:00:48]} 33. Bb4 {[%emt 0:01:31]} Bf8 {[%emt 0:01:08]} 34. Bxf8 {[%emt 0:01:13]} Kxf8 {[%emt 0:00:09]} 35. Bd3 {[%emt 0:00:30]} Rbc8 {[%emt 0:09:04]} 36. Kd2 {[%emt 0:00:25]} 1/2-1/2

[Event "Vienna GM February 2022"]
[Site "Vienna"]
[Date "2022.02.24"]
[Round "8.4"]
[White "Kraus, Tomas"]
[Black "Horvath, Dominik"]
[Result "0-1"]
[ECO "B22"]
[WhiteElo "2477"]
[BlackElo "2483"]
[Annotator "RC"]
[PlyCount "136"]
[EventDate "2022.02.16"]
[EventType "tourn"]
[EventCountry "AUT"]
[SourceTitle "playchess.com"]
[Source "ChessBase"]
[SourceQuality "1"]
[TimeControl "40/5400+30:1800+30"]

1. e4 {[%emt 0:00:04]} c5 {[%emt 0:01:28]} 2. Nf3 {[%emt 0:00:27]} Nc6 {[%emt 0:01:07]} 3. c3 {[%emt 0:00:09]} Nf6 {[%emt 0:00:13]} 4. e5 {[%emt 0:00:15]} Nd5 {[%emt 0:00:05]} 5. Bc4 {[%emt 0:00:22]} Nb6 {[%emt 0:00:04]} 6. Bb3 {[%emt 0:00:07]} c4 {[%emt 0:00:30]} 7. Bc2 {[%emt 0:00:06]} d5 {[%emt 0:00:02]} 8. exd6 {[%emt 0:00:24]} Qxd6 {[%emt 0:00:06]} 9. O-O {[%emt 0:00:35]} Bg4 {[%emt 0:00:06]} 10. h3 {[%emt 0:00:39]} Bh5 {[%emt 0:00:04]} 11. Re1 {[%emt 0:01:05]} O-O-O {[%emt 0:00:41]} 12. b3 {[%emt 0:02:16]} Qf6 {[%emt 0:02:53]} 13. Na3 {[%emt 0:02:20]} Nd5 {[%emt 0:03:07]} 14. Nxc4 {[%emt 0:00:16]} b5 {[%emt 0:00:05]} 15. Be4 {[%emt 0:08:48]} bxc4 {[%emt 0:00:45]} 16. Qe2 {[%emt 0:03:10]} Ne5 {[%emt 0:02:10]} 17. g4 {[%emt 0:03:35]} Nf4 {[%emt 0:00:04]} 18. Qe3 {[%emt 0:05:55]} Nxf3+ {[%emt 0:14:20]} 19. Bxf3 {[%emt 0:11:16]} Nxh3+ {[%emt 0:00:07]} 20. Kg2 {[%emt 0:04:35]} Rd3 {[%emt 0:01:29]} 21. Qc5+ {[%emt 0:09:28]} Kb8 {[%emt 0:00:11]} 22. Qb5+ {[%emt 0:04:13]} Qb6 {[%emt 0:01:27]} 23. Qxb6+ {[%emt 0:00:41]} axb6 {[%emt 0:00:10]} 24. gxh5 {[%emt 0:00:07]} Nf4+ {[%emt 0:02:18]} 25. Kg3 {[%emt 0:00:05]} Nxh5+ {[%emt 0:01:27]} 26. Kg2 {[%emt 0:02:56]} Nf4+ {[%emt 0:01:07]} 27. Kg3 {[%emt 0:00:05]} e6 {[%emt 0:05:20]} 28. Kxf4 {[%emt 0:12:00]} Bd6+ {[%emt 0:00:06]} 29. Kg4 {[%emt 0:00:03]} h5+ {[%emt 0:00:32]} 30. Kh3 {[%emt 0:00:05]} Rxf3+ {[%emt 0:00:04]} 31. Kg2 {[%emt 0:00:06]} Rd3 {[%emt 0:03:36]} 32. bxc4 {[%emt 0:00:09]} Bc5 {[%emt 0:00:18]} 33. Rh1 {[%emt 0:04:55]} g5 {[%emt 0:04:11]} 34. a4 {[%emt 0:01:23]} h4 {[%emt 0:02:32]} 35. a5 {[%emt 0:00:51]} g4 {[%emt 0:16:58]} 36. Kf1 {[%emt 0:04:55]} e5 {[%emt 0:01:22]} 37. Ke2 {[%emt 0:01:12]} Rf3 {[%emt 0:00:43]} 38. Rh2 {[%emt 0:03:02]} h3 {[%emt 0:05:24]} 39. Ba3 {[%emt 0:01:24]} Kb7 {[%emt 0:00:39]} 40. Bxc5 {[%emt 0:02:48]} bxc5 {[%emt 0:00:04]} 41. Rb1+ {[%emt 0:31:22]} Ka7 {[%emt 0:31:37]} 42. Rb5 {[%emt 0:02:38]} Rc8 {[%emt 0:05:03]} 43. Rb6 {[%emt 0:02:43]} e4 {[%emt 0:00:37]} 44. Rh1 {[%emt 0:01:24]} f5 {[%emt 0:02:18]} 45. Rh6 {[%emt 0:07:09]} Rc7 {[%emt 0:01:08]} 46. Rb1 {[%emt 0:00:00]} Rb7 {[%emt 0:00:00]} 47. Rb5 {[%emt 0:00:00]} f4 {[%emt 0:00:00]} 48. Rxb7+ {[%emt 0:00:00]} Kxb7 {[%emt 0:00:00]} 49. Rh4 {[%emt 0:00:00]} e3 {[%emt 0:00:00]} 50. dxe3 {[%emt 0:00:00]} fxe3 {[%emt 0:00:00]} 51. Rxg4 {[%emt 0:00:00]} exf2 {[%emt 0:00:00]} 52. Kf1 {[%emt 0:00:00]} Ka6 {[%emt 0:00:00]} 53. Rg6+ {[%emt 0:01:16]} Kxa5 {[%emt 0:00:00]} 54. Rc6 {[%emt 0:01:25]} Rf5 {[%emt 0:01:54]} 55. Rh6 {[%emt 0:00:07]} Ka4 {[%emt 0:00:43]} 56. Rxh3 {[%emt 0:00:12]} Kb3 {[%emt 0:00:03]} 57. Rh4 {[%emt 0:00:29]} Kxc3 {[%emt 0:00:05]} 58. Rg4 {[%emt 0:00:22]} Kb4 {[%emt 0:01:36]} 59. Rh4 {[%emt 0:00:14]} Rf3 {[%emt 0:00:07]} 60. Rg4 {[%emt 0:00:31]} Rc3 {[%emt 0:01:40]} 61. Kxf2 {[%emt 0:00:15]} Rxc4 {[%emt 0:00:02]} 62. Rg1 {[%emt 0:00:17]} Rc2+ {[%emt 0:03:11]} 63. Ke3 {[%emt 0:00:12]} Kc3 {[%emt 0:00:18]} 64. Rb1 {[%emt 0:03:02]} c4 {[%emt 0:00:04]} 65. Rb8 {[%emt 0:00:55]} Rh2 {[%emt 0:00:13]} 66. Rb7 {[%emt 0:00:38]} Kc2 {[%emt 0:00:17]} 67. Ra7 {[%emt 0:00:12]} Rh3+ {[%emt 0:01:02]} 68. Ke2 {[%emt 0:00:46]} c3 {[%emt 0:00:20]} 0-1

[Event "Vienna GM February 2022"]
[Site "Vienna"]
[Date "2022.02.24"]
[Round "8.5"]
[White "Sahidi, Samir"]
[Black "Baenziger, Fabian"]
[Result "1/2-1/2"]
[ECO "D12"]
[WhiteElo "2432"]
[BlackElo "2418"]
[Annotator "RC"]
[PlyCount "81"]
[EventDate "2022.02.16"]
[EventType "tourn"]
[EventCountry "AUT"]
[SourceTitle "playchess.com"]
[Source "ChessBase"]
[SourceQuality "1"]
[TimeControl "40/5400+30:1800+30"]

1. d4 {[%emt 0:00:04]} d5 {[%emt 0:00:16]} 2. Nf3 {[%emt 0:00:42]} Nf6 {[%emt 0:00:17]} 3. c4 {[%emt 0:02:05]} c6 {[%emt 0:00:59]} 4. e3 {[%emt 0:01:45]} Bf5 {[%emt 0:00:25]} 5. Nc3 {[%emt 0:07:35]} e6 {[%emt 0:00:50]} 6. Bd3 {[%emt 0:01:48]} Bxd3 {[%emt 0:02:29]} 7. Qxd3 {[%emt 0:00:06]} Bb4 {[%emt 0:01:08]} 8. O-O {[%emt 0:02:56]} Nbd7 {[%emt 0:02:03]} 9. Bd2 {[%emt 0:02:04]} a5 {[%emt 0:01:29]} 10. Rfd1 {[%emt 0:13:50]} O-O {[%emt 0:01:12]} 11. Rab1 {[%emt 0:04:07]} Re8 {[%emt 0:04:59]} 12. a3 {[%emt 0:05:34]} Be7 {[%emt 0:02:17]} 13. Rbc1 {[%emt 0:06:08]} Qb6 {[%emt 0:10:38]} 14. a4 {[%emt 0:08:51]} Qa6 {[%emt 0:14:09]} 15. b3 {[%emt 0:01:18]} Ba3 {[%emt 0:00:59]} 16. Ra1 {[%emt 0:00:54]} Bb4 {[%emt 0:04:33]} 17. Ne2 {[%emt 0:05:33]} Bxd2 {[%emt 0:15:42]} 18. Rxd2 {[%emt 0:01:43]} e5 {[%emt 0:01:29]} 19. dxe5 {[%emt 0:02:38]} Nxe5 {[%emt 0:00:06]} 20. Nxe5 {[%emt 0:00:38]} Rxe5 {[%emt 0:00:04]} 21. h3 {[%emt 0:09:15]} Qb6 {[%emt 0:04:25]} 22. Qd4 {[%emt 0:03:46]} Qc7 {[%emt 0:05:23]} 23. Nc3 {[%emt 0:02:41]} Qe7 {[%emt 0:08:22]} 24. Rad1 {[%emt 0:00:59]} dxc4 {[%emt 0:01:12]} 25. bxc4 {[%emt 0:01:07]} h6 {[%emt 0:04:30]} 26. Rb1 {[%emt 0:03:34]} Ne4 {[%emt 0:06:53]} 27. Nxe4 {[%emt 0:03:05]} Rxe4 {[%emt 0:00:05]} 28. Qd3 {[%emt 0:02:22]} Re8 {[%emt 0:01:39]} 29. Rdb2 {[%emt 0:01:38]} Rd8 {[%emt 0:02:47]} 30. Qc2 {[%emt 0:01:37]} Qe6 {[%emt 0:00:21]} 31. Rc1 {[%emt 0:00:23]} Rd7 {[%emt 0:00:35]} 32. Qc3 {[%emt 0:00:24]} Qe5 {[%emt 0:01:03]} 33. Qxe5 {[%emt 0:01:10]} Rxe5 {[%emt 0:00:04]} 34. Kf1 {[%emt 0:00:25]} f5 {[%emt 0:02:28]} 35. Ke2 {[%emt 0:01:28]} Kf7 {[%emt 0:00:31]} 36. Rd2 {[%emt 0:01:45]} Rxd2+ {[%emt 0:00:51]} 37. Kxd2 {[%emt 0:00:08]} b5 {[%emt 0:00:25]} 38. cxb5 {[%emt 0:02:12]} cxb5 {[%emt 0:00:04]} 39. Rc7+ {[%emt 0:00:33]} Kf6 {[%emt 0:00:22]} 40. Rc6+ {[%emt 0:00:48]} Kf7 {[%emt 0:00:35]} 41. axb5 {[%emt 0:30:09]} 1/2-1/2

[Event "Vienna GM February 2022"]
[Site "Vienna"]
[Date "2022.02.25"]
[Round "9.2"]
[White "Horvath, Dominik"]
[Black "Sahidi, Samir"]
[Result "1-0"]
[ECO "C78"]
[WhiteElo "2483"]
[BlackElo "2432"]
[Annotator "ChessBase"]
[PlyCount "107"]
[EventDate "2022.02.16"]
[EventType "tourn"]
[EventCountry "AUT"]
[SourceTitle "playchess.com"]
[Source "ChessBase"]
[SourceQuality "1"]
[TimeControl "40/5400+30:1800+30"]

1. e4 {[%emt 0:00:01]} e5 {[%emt 0:00:43]} 2. Nf3 {[%emt 0:00:14]} Nc6 {[%emt 0:00:09]} 3. Bb5 {[%emt 0:00:08]} a6 {[%emt 0:01:36]} 4. Ba4 {[%emt 0:00:04]} Nf6 {[%emt 0:01:51]} 5. O-O {[%emt 0:00:21]} b5 {[%emt 0:02:13]} 6. Bb3 {[%emt 0:00:05]} Bc5 {[%emt 0:00:09]} 7. a4 {[%emt 0:00:15]} Rb8 {[%emt 0:05:36]} 8. c3 {[%emt 0:00:06]} d6 {[%emt 0:00:54]} 9. d4 {[%emt 0:00:06]} Bb6 {[%emt 0:00:35]} 10. a5 {[%emt 0:05:23]} Ba7 {[%emt 0:08:49]} 11. Be3 {[%emt 0:05:21]} Bg4 {[%emt 0:10:35]} 12. h3 {[%emt 0:01:20]} Bxf3 {[%emt 0:04:55]} 13. gxf3 {[%emt 0:01:03]} exd4 {[%emt 0:14:50]} 14. cxd4 {[%emt 0:00:19]} d5 {[%emt 0:00:20]} 15. Re1 {[%emt 0:37:48]} dxe4 {[%emt 0:11:51]} 16. d5 {[%emt 0:00:11]} Bxe3 {[%emt 0:00:10]} 17. Rxe3 {[%emt 0:00:04]} Ne5 {[%emt 0:00:30]} 18. fxe4 {[%emt 0:00:57]} g5 {[%emt 0:04:27]} 19. Nd2 {[%emt 0:02:08]} Rg8 {[%emt 0:04:46]} 20. Nf3 {[%emt 0:05:48]} Nfd7 {[%emt 0:03:13]} 21. d6 {[%emt 0:05:06]} g4 {[%emt 0:10:14]} 22. Nxe5 {[%emt 0:00:24]} Nxe5 {[%emt 0:00:33]} 23. dxc7 {[%emt 0:07:13]} Qxc7 {[%emt 0:01:19]} 24. Rc1 {[%emt 0:05:07]} gxh3+ {[%emt 0:03:51]} 25. Rg3 {[%emt 0:05:59]} Rxg3+ {[%emt 0:00:47]} 26. fxg3 {[%emt 0:00:04]} Qa7+ {[%emt 0:00:25]} 27. Kh2 {[%emt 0:00:15]} Rd8 {[%emt 0:01:56]} 28. Bd5 {[%emt 0:05:26]} Qf2+ {[%emt 0:00:24]} 29. Kxh3 {[%emt 0:00:03]} Rd6 {[%emt 0:00:19]} 30. Qh5 {[%emt 0:00:02]} Qf6 {[%emt 0:03:52]} 31. Kg2 {[%emt 0:04:20]} h6 {[%emt 0:01:24]} 32. Rf1 {[%emt 0:01:20]} Qg5 {[%emt 0:00:48]} 33. Bxf7+ {[%emt 0:00:17]} Ke7 {[%emt 0:00:09]} 34. Qxg5+ {[%emt 0:00:13]} hxg5 {[%emt 0:00:06]} 35. Bd5 {[%emt 0:00:04]} Rf6 {[%emt 0:01:21]} 36. Rxf6 {[%emt 0:04:52]} Kxf6 {[%emt 0:00:06]} 37. Kf2 {[%emt 0:00:43]} Ke7 {[%emt 0:02:08]} 38. Ke3 {[%emt 0:00:10]} Kd6 {[%emt 0:00:09]} 39. b4 {[%emt 0:00:16]} Kc7 {[%emt 0:00:39]} 40. Kd4 {[%emt 0:01:01]} Nf3+ {[%emt 0:00:17]} 41. Kd3 {[%emt 0:30:10]} Ne5+ {[%emt 0:31:14]} 42. Ke3 {[%emt 0:00:59]} Kb8 {[%emt 0:00:42]} 43. Kd4 {[%emt 0:03:04]} Nf3+ {[%emt 0:00:09]} 44. Kc5 {[%emt 0:00:02]} Kc7 {[%emt 0:00:17]} 45. Ba8 {[%emt 0:00:00]} Nd2 {[%emt 0:00:00]} 46. e5 {[%emt 0:00:00]} Nf1 {[%emt 0:00:00]} 47. g4 {[%emt 0:00:00]} Ne3 {[%emt 0:00:00]} 48. e6 {[%emt 0:00:00]} Kd8 {[%emt 0:02:13]} 49. Bf3 {[%emt 0:00:00]} Ke7 {[%emt 0:00:21]} 50. Kb6 {[%emt 0:00:00]} Nc2 {[%emt 0:00:17]} 51. Kxa6 {[%emt 0:00:00]} Kxe6 {[%emt 0:00:44]} 52. Kxb5 {[%emt 0:00:00]} Kd7 {[%emt 0:00:40]} 53. a6 {[%emt 0:00:00]} Nd4+ {[%emt 0:00:50]} 54. Kb6 {[%emt 0:00:00]} 1-0

[Event "Vienna GM February 2022"]
[Site "Vienna"]
[Date "2022.02.25"]
[Round "9.3"]
[White "Diermair, Andreas"]
[Black "Kraus, Tomas"]
[Result "1/2-1/2"]
[ECO "B08"]
[WhiteElo "2469"]
[BlackElo "2477"]
[Annotator "ChessBase"]
[PlyCount "21"]
[EventDate "2022.02.16"]
[EventType "tourn"]
[EventCountry "AUT"]
[SourceTitle "playchess.com"]
[Source "ChessBase"]
[SourceQuality "1"]
[TimeControl "40/5400+30:1800+30"]

1. e4 {[%emt 0:00:02]} d6 {[%emt 0:00:05]} 2. d4 {[%emt 0:00:05]} g6 {[%emt 0:00:04]} 3. Nc3 {[%emt 0:00:04]} Bg7 {[%emt 0:00:03]} 4. Nf3 {[%emt 0:00:03]} Nf6 {[%emt 0:00:06]} 5. Be2 {[%emt 0:00:02]} O-O {[%emt 0:00:05]} 6. O-O {[%emt 0:00:02]} a6 {[%emt 0:00:07]} 7. a4 {[%emt 0:00:04]} Nc6 {[%emt 0:00:11]} 8. Bg5 {[%emt 0:00:06]} h6 {[%emt 0:00:10]} 9. Be3 {[%emt 0:00:09]} b6 {[%emt 0:00:32]} 10. h3 {[%emt 0:00:05]} Bb7 {[%emt 0:00:08]} 11. Re1 {[%emt 0:00:11]} 1/2-1/2

[Event "Vienna GM February 2022"]
[Site "Vienna"]
[Date "2022.02.25"]
[Round "9.5"]
[White "Baumegger, Siegfried"]
[Black "Froewis, Georg"]
[Result "1/2-1/2"]
[ECO "C19"]
[WhiteElo "2464"]
[BlackElo "2449"]
[Annotator "ChessBase"]
[PlyCount "20"]
[EventDate "2022.02.16"]
[EventType "tourn"]
[EventCountry "AUT"]
[SourceTitle "playchess.com"]
[Source "ChessBase"]
[SourceQuality "1"]
[TimeControl "40/5400+30:1800+30"]

1. e4 {[%emt 0:00:05]} e6 {[%emt 0:00:01]} 2. d4 {[%emt 0:00:02]} d5 {[%emt 0:00:02]} 3. Nc3 {[%emt 0:00:02]} Bb4 {[%emt 0:00:02]} 4. e5 {[%emt 0:00:03]} c5 {[%emt 0:00:02]} 5. a3 {[%emt 0:00:05]} Bxc3+ {[%emt 0:00:05]} 6. bxc3 {[%emt 0:00:02]} Ne7 {[%emt 0:00:04]} 7. a4 {[%emt 0:00:03]} Qa5 {[%emt 0:00:02]} 8. Qd2 {[%emt 0:00:03]} Nbc6 {[%emt 0:00:03]} 9. Nf3 {[%emt 0:00:03]} Bd7 {[%emt 0:00:30]} 10. Bb5 cxd4 {[%emt 0:00:30]} 1/2-1/2